bitfinex/quotes_ETHUSD_20241130
["timestamp","ask_amount","ask_price","bid_price","bid_amount"]
[1732941561366,0.1,3654.1,3653.0,1.5877]
[1732941561548,0.1,3654.1,3653.2,1.5877]
[1732941561937,0.3064798,3654.2,3653.2,1.5877]
[1732941562464,0.55,3654.1,3653.2,1.5877]
[1732941562960,0.3064798,3654.2,3654.0,1.5877]
[1732941563105,0.1,3655.7,3654.3,2.10697057]
[1732941563277,1.5659,3655.8,3654.4,1.5877]
[1732941563278,0.1,3655.2,3654.4,1.5877]
[1732941563481,0.1,3655.3,3654.4,1.5877]
[1732941563810,0.1,3655.5,3654.4,1.5877]
[1732941565105,0.1,3655.5,3654.7,1.5304]
[1732941566791,0.55,3655.4,3654.7,1.5304]
[1732941567898,0.55,3655.2,3654.7,1.5304]
[1732941570030,0.55,3654.9,3653.3,1.5348]
[1732941571503,0.3587292,3656.4,3654.7,1.5348]
[1732941572592,0.55,3656.3,3654.7,1.5348]
[1732941573917,0.55,3656.3,3655.7,0.55566807]
[1732941578742,0.55,3656.3,3655.6,1.5348]
[1732941578933,0.55,3656.1,3655.6,1.5348]
[1732941580727,0.1587292,3656.4,3655.6,1.5348]
[1732941582667,0.55,3656.3,3655.6,1.5348]
[1732941583559,0.55,3656.3,3655.7,0.2745]
[1732941583931,0.55,3656.3,3655.6,1.5348]
[1732941584258,0.1587292,3656.4,3655.7,1.6453]
[1732941585557,0.55,3656.9,3656.3,1.6453]
[1732941586480,0.65,3657.1,3656.3,1.6453]
[1732941588121,0.1,3657.4,3656.3,1.6453]
[1732941588435,0.1,3657.5,3656.3,1.6453]
[1732941588766,0.1,3657.4,3656.3,1.86445645]
[1732941589862,0.55,3657.3,3656.3,1.86445645]
[1732941590449,0.55,3657.5,3656.3,1.86445645]
[1732941590631,0.55,3657.3,3656.3,1.86445645]
[1732941590972,0.55,3657.3,3656.4,0.24107209]
[1732941591259,0.55,3657.3,3656.5,1.5477]
[1732941592929,0.55,3657.3,3656.8,0.53892002]
[1732941593242,0.55,3657.3,3656.9,1.5477]
[1732941593764,0.55,3657.6,3656.9,1.5477]
[1732941594671,0.55,3657.4,3656.9,1.5477]
[1732941595853,0.1,3657.5,3656.9,1.5477]
[1732941596051,0.40781102,3658.3,3656.8,0.53892002]
[1732941596052,0.1,3657.2,3656.8,0.53892002]
[1732941596236,0.26868,3657.2,3656.5,1.5477]
[1732941596438,0.1,3657.2,3656.5,1.5477]
[1732941597656,0.1,3656.9,3655.8,1.5477]
[1732941598171,0.55,3656.8,3655.8,1.5477]
[1732941599573,0.1,3656.9,3656.0,0.53559021]
[1732941599755,0.55,3656.8,3656.0,0.53559021]
[1732941600727,0.55,3656.8,3656.1,0.20832902]
[1732941600931,0.55,3657.0,3656.2,1.5477]
[1732941601547,0.65,3657.0,3656.2,1.5477]
[1732941602335,0.55,3656.8,3656.2,1.5477]
[1732941603171,0.1,3657.5,3656.2,1.5477]
[1732941603471,0.1,3657.6,3656.4,1.5477]
[1732941603653,1.5868,3657.7,3656.3,0.41902608]
[1732941603654,1.5868,3657.7,3656.5,1.5477]
[1732941603863,0.1,3658.0,3656.5,2.10697057]
[1732941604173,0.1,3658.0,3656.6,1.5477]
[1732941604400,0.1,3658.0,3656.7,1.91316706]
[1732941604902,0.1,3657.8,3656.7,1.91316706]
[1732941605203,0.2,3658.0,3656.7,1.5477]
[1732941606488,0.55,3657.9,3656.7,1.5477]
[1732941608200,0.2,3658.0,3656.9,2.10697057]
[1732941608496,0.1,3658.0,3657.0,1.5763]
[1732941608788,0.1,3658.0,3657.1,1.91132706]
[1732941609416,0.1,3658.2,3657.1,1.91132706]
[1732941609891,0.55,3658.3,3657.1,1.91132706]
[1732941610065,0.1,3658.0,3657.1,1.91132706]
[1732941610277,0.1,3658.0,3657.2,0.19113271]
[1732941610894,0.55,3658.4,3657.3,1.543]
[1732941611070,0.1,3658.5,3657.3,1.543]
[1732941611271,0.1,3658.3,3657.3,1.543]
[1732941611983,1.7459,3658.6,3657.3,1.543]
[1732941612180,1.6415,3658.9,3657.5,1.543]
[1732941612489,1.5415,3658.9,3657.1,0.36832706]
[1732941612807,0.26690591,3658.7,3657.1,0.36832706]
[1732941613105,0.1,3658.5,3657.1,0.36832706]
[1732941614070,0.55,3658.6,3657.1,0.36832706]
[1732941614609,0.1,3658.5,3657.1,0.36832706]
[1732941615321,0.1,3658.5,3657.2,1.543]
[1732941615475,0.1,3658.5,3657.3,0.19113271]
[1732941616695,0.1,3657.5,3656.8,1.543]
[1732941617474,0.55,3657.8,3656.8,1.543]
[1732941617675,0.1,3658.3,3656.8,1.543]
[1732941617915,0.25551114,3658.2,3656.8,1.543]
[1732941618116,0.02427097,3658.7,3656.6,0.06222508]
[1732941618287,0.02427097,3658.7,3657.0,1.47132532]
[1732941618482,0.02427097,3658.7,3656.1,2.59777707]
[1732941618722,0.02427097,3658.7,3657.6,0.78993795]
[1732941618905,0.02427097,3658.7,3657.1,0.02841109]
[1732941619077,0.02427097,3658.7,3657.5,0.76394703]
[1732941619620,0.24258841,3659.5,3657.5,0.76394703]
[1732941619778,0.1,3659.1,3657.5,0.76394703]
[1732941620277,0.1,3659.1,3657.1,2.10697057]
[1732941620478,1.6415,3659.1,3657.1,2.10697057]
[1732941620787,2.10697057,3658.9,3656.7,2.10697057]
[1732941620985,1.6415,3659.1,3656.7,2.10697057]
[1732941621197,1.6415,3659.1,3657.2,1.543]
[1732941621391,0.55,3659.0,3657.2,1.543]
[1732941622321,0.55,3658.7,3657.2,1.543]
[1732941622779,0.55,3658.9,3657.2,1.543]
[1732941622979,0.55,3659.0,3657.2,1.543]
[1732941623177,0.90705973,3659.0,3657.4,1.543]
[1732941623382,0.55,3659.0,3657.4,1.543]
[1732941624482,0.55,3659.0,3657.7,0.54202438]
[1732941624676,0.65,3659.0,3657.8,1.6016]
[1732941625488,0.55,3659.0,3657.8,1.6016]
[1732941625684,0.65,3659.0,3657.8,1.6016]
[1732941625882,0.65,3659.0,3657.9,0.21436244]
[1732941626928,0.55,3659.0,3658.0,1.6016]
[1732941627288,0.65,3659.0,3658.0,1.6016]
[1732941628505,0.75,3659.0,3658.0,1.6016]
[1732941629028,1.532,3659.3,3658.0,1.6016]
[1732941629230,1.532,3659.3,3658.2,1.5024]
[1732941630337,2.24955898,3659.5,3658.2,1.5024]
[1732941630831,0.14258841,3659.5,3658.2,1.5024]
[1732941632333,0.14258841,3659.5,3658.5,0.54603868]
[1732941632554,0.14258841,3659.5,3658.6,1.5024]
[1732941632834,0.14258841,3659.5,3658.7,0.20484387]
[1732941633628,0.55,3659.4,3658.7,0.20484387]
[1732941635097,0.55,3659.4,3658.7,0.19261097]
[1732941635327,0.55,3659.7,3658.7,0.19261097]
[1732941637236,2.39125157,3659.8,3658.7,0.19261097]
[1732941637436,2.39125157,3659.8,3658.8,0.22410497]
[1732941638907,0.55,3659.7,3658.8,0.21075882]
[1732941640135,0.55,3659.5,3658.6,1.5024]
[1732941640547,1.5819,3659.4,3658.5,0.54603868]
[1732941642344,1.5819,3659.4,3658.5,0.53133919]
[1732941642499,0.55,3659.3,3658.6,1.093585]
[1732941646240,0.55,3659.1,3658.6,1.093585]
[1732941646978,0.55,3659.1,3657.3,0.63949706]
[1732941646979,0.55,3658.7,3657.6,1.5712]
[1732941647278,1.71028,3659.1,3658.1,1.5712]
[1732941647481,0.55,3659.0,3658.1,1.5712]
[1732941647771,0.55,3659.0,3658.9,2.73306]
[1732941648880,0.55,3659.5,3658.1,1.5712]
[1732941649237,0.55,3659.1,3658.1,1.5712]
[1732941649478,0.55,3659.1,3658.2,0.2664785]
[1732941649785,1.5619,3659.0,3658.2,0.2664785]
[1732941649977,0.55,3658.9,3658.0,1.093585]
[1732941650870,1.5619,3658.8,3658.0,1.093585]
[1732941651261,1.5619,3658.6,3658.0,1.093585]
[1732941651460,0.55,3658.5,3658.0,1.093585]
[1732941651682,0.55,3658.5,3657.5,1.6522]
[1732941651875,0.55,3658.5,3657.6,1.259106]
[1732941652079,1.5619,3658.4,3657.6,1.093886]
[1732941652239,0.55,3658.3,3657.6,1.093886]
[1732941653217,0.5,3658.3,3657.6,1.093886]
[1732941653422,1.5619,3658.4,3657.6,1.093886]
[1732941654093,1.6619,3658.4,3657.6,1.093886]
[1732941654298,0.16619,3658.3,3657.6,1.093886]
[1732941654808,1.5619,3658.2,3657.6,1.093886]
[1732941655008,1.5619,3658.2,3657.2,1.6522]
[1732941655329,0.55,3657.9,3656.5,1.6522]
[1732941655623,0.55,3657.9,3656.0,2.10697057]
[1732941655823,0.14261343,3657.8,3656.1,0.21069706]
[1732941655981,0.55,3657.7,3656.1,0.21069706]
[1732941656178,0.55,3657.7,3656.1,1.30479806]
[1732941656384,2.1119,3657.2,3656.1,1.30479806]
[1732941656733,2.1119,3657.2,3656.1,1.84810541]
[1732941657112,2.34309,3657.2,3656.1,1.30479806]
[1732941657283,0.55,3657.0,3656.1,0.21069706]
[1732941657487,0.55,3657.0,3655.1,2.10697057]
[1732941657822,0.2,3657.1,3653.6,0.28444882]
[1732941657823,0.55,3656.8,3655.7,0.55550237]
[1732941657995,0.65,3656.8,3655.2,1.094387]
[1732941658209,0.55,3656.6,3655.2,1.094387]
[1732941658522,0.55,3656.4,3655.2,1.094387]
[1732941659035,0.65,3656.4,3655.3,0.2746587]
[1732941659521,1.5619,3656.0,3655.3,0.2746587]
[1732941659707,0.55,3655.9,3655.2,1.094387]
[1732941659908,0.55,3655.9,3655.8,2.73537]
[1732941660227,0.55,3655.9,3655.6,2.73547]
[1732941660410,0.55,3655.9,3654.8,2.73612]
[1732941660411,0.55,3655.7,3655.5,2.73554]
[1732941660765,0.55,3655.7,3655.6,2.73552]
[1732941662144,0.55,3655.7,3655.4,2.73566]
[1732941662145,2.75697057,3655.7,3655.4,2.73566]
[1732941662522,2.75697057,3655.7,3655.6,2.73552]
[1732941662765,2.65697057,3655.7,3655.6,2.73552]
[1732941662956,0.55,3655.7,3655.6,2.73552]
[1732941664159,0.65,3655.7,3655.6,2.73552]
[1732941664727,0.55,3655.7,3655.6,2.73552]
[1732941665060,1.5936,3656.2,3656.1,2.73515]
[1732941666445,2.1436,3656.2,3656.1,2.73515]
[1732941671581,2.1436,3656.2,3655.6,0.547113]
[1732941671582,0.55,3656.1,3655.6,0.547113]
[1732941671772,0.55,3656.1,3655.2,1.5534]
[1732941672541,2.10697057,3656.5,3655.2,1.5534]
[1732941672845,0.55,3656.4,3656.3,2.735]
[1732941673050,3.65887057,3656.5,3656.4,2.73493]
[1732941673463,0.23119,3657.2,3655.8,4.3174]
[1732941673464,2.1019,3656.8,3656.7,2.73465]
[1732941673674,2.1019,3656.8,3655.3,2.73575]
[1732941673675,1.5519,3657.2,3656.4,1.5821]
[1732941673907,1.5519,3657.2,3656.5,0.15821]
[1732941675362,1.5519,3657.2,3656.0,1.5821]
[1732941675812,0.55,3657.1,3656.0,1.5821]
[1732941676412,0.55,3656.8,3656.0,1.5821]
[1732941676981,1.5519,3656.7,3654.8,1.5821]
[1732941677188,0.55,3656.4,3655.4,1.5821]
[1732941677389,0.55,3656.4,3655.5,0.15821]
[1732941678286,0.55,3656.2,3655.5,0.15821]
[1732941679564,0.65,3656.2,3654.6,1.5821]
[1732941680622,0.65,3656.2,3655.0,0.54797143]
[1732941682201,0.55,3656.2,3655.0,0.54797143]
[1732941682404,1.5519,3656.3,3655.1,1.5821]
[1732941682921,1.69456828,3657.5,3656.1,1.5821]
[1732941683104,1.5519,3657.5,3656.5,2.73485]
[1732941683296,1.5519,3657.5,3656.3,1.5821]
[1732941683495,1.5519,3657.5,3657.0,2.73444]
[1732941683743,1.5519,3657.5,3656.7,2.73464]
[1732941684029,1.5519,3657.5,3657.4,0.015802]
[1732941684333,1.5519,3657.5,3656.7,2.73464]
[1732941684491,1.5519,3657.5,3656.8,0.273464]
[1732941686591,0.55,3657.4,3656.4,0.5439232]
[1732941687003,0.55,3657.5,3656.4,0.5439232]
[1732941687207,0.55,3657.3,3656.4,0.5439232]
[1732941687623,0.55,3657.1,3655.8,1.5751]
[1732941687824,3.69627057,3657.0,3655.8,1.5751]
[1732941688223,0.55,3656.7,3655.6,0.54724897]
[1732941688411,1.5893,3656.6,3654.9,1.5751]
[1732941688745,0.55,3656.3,3654.9,1.5751]
[1732941688943,0.55,3656.3,3655.0,0.15751]
[1732941689445,1.5149,3656.4,3655.0,0.15751]
[1732941689446,1.6149,3656.4,3655.0,1.75901]
[1732941689746,0.55,3656.1,3655.1,0.55769829]
[1732941691236,0.55,3655.6,3655.0,0.15751]
[1732941691557,0.55,3655.6,3654.4,2.14836601]
[1732941692510,1.5149,3655.5,3654.4,2.14836601]
[1732941692710,0.55,3655.4,3654.4,0.54686601]
[1732941693632,0.55,3655.4,3652.5,2.10697057]
[1732941693633,0.55,3655.2,3653.8,1.6015]
[1732941693947,0.55,3655.0,3653.9,0.16015]
[1732941694330,0.65,3655.0,3653.9,0.16015]
[1732941694762,0.55,3655.0,3653.9,0.16015]
[1732941695322,1.5149,3654.9,3653.9,0.16015]
[1732941695613,0.55,3655.0,3653.8,0.54057454]
[1732941695614,0.55,3654.6,3653.8,0.54057454]
[1732941696055,0.55,3654.6,3653.4,1.6015]
[1732941696268,0.55,3654.4,3653.4,1.6015]
[1732941696618,0.55,3654.4,3652.8,0.55]
[1732941697050,0.55,3654.4,3653.3,0.55497321]
[1732941697730,0.55,3654.4,3652.8,0.55]
[1732941697967,0.55,3654.0,3652.9,0.21515]
[1732941698321,0.65,3654.0,3652.9,0.21515]
[1732941698569,0.55,3653.8,3652.9,0.21515]
[1732941699105,1.5149,3653.9,3652.9,0.21515]
[1732941699311,0.55,3653.8,3652.9,0.21515]
[1732941700582,0.65,3653.8,3652.9,0.21515]
[1732941701199,1.5149,3653.5,3651.8,1.6015]
[1732941701506,0.55,3653.4,3651.8,2.696825]
[1732941701808,0.55,3653.4,3652.5,0.56073896]
[1732941704208,0.55,3653.1,3651.2,1.5318]
[1732941704408,0.55,3652.9,3651.4,1.095445]
[1732941704572,0.55,3652.9,3651.5,1.5318]
[1732941704779,0.55,3652.9,3652.2,0.55279958]
[1732941705515,0.55,3652.9,3652.2,2.08459958]
[1732941706059,0.55,3652.7,3651.3,1.45934106]
[1732941706207,0.55,3652.7,3651.1,1.5318]
[1732941706208,0.55,3652.7,3651.4,0.29911411]
[1732941706412,0.55,3652.7,3651.8,0.53949428]
[1732941706813,0.55,3652.7,3652.5,2.73779]
[1732941707257,0.55,3652.7,3652.6,2.73777]
[1732941707862,1.5558,3653.1,3652.6,2.73777]
[1732941708014,1.5558,3653.6,3653.5,2.73709]
[1732941710715,0.55,3653.5,3653.4,2.73717]
[1732941711713,0.55,3653.5,3653.2,2.7373]
[1732941712116,0.65,3653.5,3653.1,2.73739]
[1732941712340,0.1,3653.4,3653.3,2.73725]
[1732941712557,0.55,3653.5,3653.4,2.73717]
[1732941717469,2.73503,3656.3,3654.1,2.73665]
[1732941717470,1.6497,3654.2,3654.1,2.73665]
[1732941718635,2.1997,3654.2,3654.1,2.73665]
[1732941719063,0.55,3654.1,3653.9,2.73674]
[1732941719372,0.55,3654.1,3654.0,2.73672]
[1732941720058,0.55,3654.1,3653.9,2.73679]
[1732941720444,0.55,3654.1,3653.8,2.73685]
[1732941721574,0.55,3654.1,3653.2,2.73725]
[1732941721738,0.55,3653.7,3653.4,2.73712]
[1732941722074,1.58362549,3653.8,3653.2,3.06697523]
[1732941722248,1.68362549,3653.8,3653.5,2.73709]
[1732941722845,1.68362549,3653.8,3653.2,2.73731]
[1732941723381,1.68362549,3653.8,3652.5,1.506]
[1732941723679,1.68362549,3653.8,3653.7,2.73695]
[1732941723969,2.23362549,3653.8,3653.7,2.73695]
[1732941724866,0.55,3653.7,3653.5,2.73709]
[1732941725055,0.55,3653.7,3653.6,2.73702]
[1732941725383,0.1,3653.6,3653.3,2.73724]
[1732941725550,0.55,3653.5,3653.4,2.73716]
[1732941725891,0.55,3653.5,3653.1,2.73736]
[1732941726182,0.55,3653.5,3653.2,2.7373]
[1732941726485,0.55,3653.5,3653.3,2.73723]
[1732941726842,2.0844,3653.4,3653.3,2.73723]
[1732941727286,1.2286456,3653.4,3653.3,2.73723]
[1732941729141,1.2286456,3653.4,3653.3,3.284689]
[1732941733108,0.55,3653.3,3653.1,2.73737]
[1732941733321,0.55,3653.3,3652.6,0.42439]
[1732941733322,0.55,3653.3,3653.2,2.73732]
[1732941736531,0.55,3653.3,3653.0,2.73742]
[1732941737131,0.81245156,3653.4,3653.0,2.73742]
[1732941737332,0.81245156,3653.4,3653.0,3.011162]
[1732941737514,0.81245156,3653.4,3653.2,2.73732]
[1732941738027,0.81245156,3653.4,3653.3,2.73725]
[1732941738807,0.81245156,3653.4,3653.0,0.273742]
[1732941739024,0.55,3653.3,3653.0,2.73746]
[1732941739389,0.55,3653.3,3653.1,2.73737]
[1732941739908,0.55,3653.3,3653.2,2.73732]
[1732941740092,0.55,3653.3,3653.0,2.73741]
[1732941740380,0.55,3653.3,3652.7,2.7377]
[1732941740580,0.55,3653.3,3652.9,2.73748]
[1732941740821,2.1824,3652.8,3652.7,2.73764]
[1732941741030,1.3265036,3652.8,3652.7,2.73764]
[1732941741626,1.3265036,3652.8,3652.5,2.73779]
[1732941741832,1.3265036,3652.8,3652.4,2.7379]
[1732941742031,1.3265036,3652.8,3651.9,1.5327]
[1732941742032,1.3265036,3652.8,3652.5,2.7378]
[1732941742188,1.3265036,3652.8,3651.9,1.5327]
[1732941742383,1.3265036,3652.8,3652.6,2.73772]
[1732941742585,1.3265036,3652.8,3652.0,2.94579247]
[1732941742779,1.3265036,3652.8,3652.5,2.7378]
[1732941743326,0.55,3652.7,3652.5,2.7378]
[1732941743623,0.55,3652.7,3652.6,2.73777]
[1732941743843,0.55,3652.7,3652.6,3.011547]
[1732941744546,0.55,3653.0,3652.9,2.73755]
[1732941745845,0.65,3653.0,3652.9,2.73755]
[1732941746003,0.55,3653.0,3652.9,2.73755]
[1732941746456,0.1,3653.8,3653.5,2.7371]
[1732941746750,0.1,3653.8,3653.6,3.01072]
[1732941746913,0.1,3653.8,3653.7,2.73695]
[1732941747633,0.1,3653.8,3653.6,0.27371]
[1732941748320,0.1,3653.8,3653.5,2.73705]
[1732941748518,0.1,3653.8,3653.4,2.73715]
[1732941748717,0.1,3653.8,3653.6,2.737]
[1732941749220,0.1,3653.8,3653.4,2.73715]
[1732941749417,0.2,3653.8,3653.4,2.73715]
[1732941750040,0.1,3653.4,3653.2,2.73725]
[1732941750243,1.6179,3653.3,3653.2,0.547472]
[1732941750520,1.6179,3653.3,3653.2,3.284792]
[1732941752323,1.6179,3653.3,3653.2,0.547472]
[1732941756271,1.6179,3653.3,3653.1,2.73739]
[1732941756467,0.1,3653.2,3652.9,2.73753]
[1732941756673,0.65,3653.2,3652.9,2.73753]
[1732941756843,0.65,3653.2,3653.0,2.73747]
[1732941757567,0.65,3653.2,3652.8,2.73761]
[1732941757568,0.55,3652.9,3652.6,3.011547]
[1732941757924,0.55,3652.9,3652.8,2.73762]
[1732941761292,0.2,3653.0,3652.8,2.73762]
[1732941761464,1.5725,3652.7,3652.6,2.73771]
[1732941761989,0.1,3652.5,3652.4,2.73791]
[1732941762288,0.55,3652.6,3652.4,3.444467]
[1732941763213,0.55,3652.6,3652.5,2.73785]
[1732941763720,0.55,3652.6,3652.4,0.706557]
[1732941763885,0.55,3652.6,3652.4,2.73788]
[1732941764421,0.55,3652.6,3652.2,2.73806]
[1732941764868,0.55,3652.6,3652.3,2.73799]
[1732941765464,0.55,3652.6,3652.0,2.73822]
[1732941765706,0.1,3652.5,3652.0,3.012042]
[1732941766006,0.1,3652.5,3652.3,2.73793]
[1732941767180,2.1496,3652.4,3652.0,0.273822]
[1732941767488,2.1496,3652.4,3652.0,2.73819]
[1732941768514,0.55,3652.1,3651.5,2.73858]
[1732941768823,0.55,3651.9,3651.5,2.73855]
[1732941769173,0.55,3651.9,3651.6,2.7385]
[1732941769408,1.5417,3651.8,3651.4,2.73862]
[1732941770571,0.55,3651.7,3651.4,2.73862]
[1732941771088,0.1,3651.6,3651.4,2.73862]
[1732941771700,0.65,3651.6,3651.5,2.7386]
[1732941772717,0.65,3651.6,3651.3,2.73872]
[1732941773315,2.1917,3651.6,3651.3,2.73872]
[1732941773923,2.1917,3651.6,3651.1,2.73888]
[1732941774357,0.55,3651.5,3651.1,2.73888]
[1732941774777,0.55,3651.3,3650.9,2.73904]
[1732941774968,0.55,3651.3,3650.6,1.5455]
[1732941775140,0.1,3651.4,3650.6,1.5455]
[1732941775141,0.1,3651.4,3651.1,2.73888]
[1732941775473,1.5417,3651.6,3650.7,0.15455]
[1732941775474,1.5417,3651.6,3651.5,2.7386]
[1732941775767,2.0917,3651.6,3651.5,2.7386]
[1732941776128,1.5417,3652.0,3651.3,1.5455]
[1732941776372,0.55,3651.9,3651.5,2.73856]
[1732941776527,0.55,3651.9,3651.6,0.428406]
[1732941776727,0.1,3652.0,3651.8,2.73837]
[1732941779545,0.55,3652.1,3651.8,2.73837]
[1732941779746,0.1,3652.0,3651.8,2.73837]
[1732941780574,0.55,3652.1,3651.9,2.7383]
[1732941780777,0.55,3652.2,3652.0,2.73822]
[1732941780976,0.1,3652.4,3652.1,2.73815]
[1732941781313,0.1,3652.4,3652.3,2.738]
[1732941782391,0.55,3652.3,3651.8,2.73834]
[1732941782883,0.1,3652.0,3651.8,2.73834]
[1732941784234,0.55,3652.1,3651.9,2.73823]
[1732941784476,0.55,3652.1,3651.7,2.73841]
[1732941784653,0.1,3652.0,3651.9,2.73823]
[1732941785767,1.628,3652.0,3651.7,3.166801]
[1732941785982,1.628,3652.0,3651.7,2.73841]
[1732941786194,1.628,3652.0,3651.5,2.73858]
[1732941786999,1.628,3652.0,3651.8,2.73837]
[1732941787791,1.628,3652.0,3651.9,2.7383]
[1732941789319,1.628,3652.0,3651.7,2.73842]
[1732941789677,0.55,3651.9,3651.7,2.73842]
[1732941790106,0.55,3651.9,3651.5,2.73859]
[1732941790804,3.2883,3651.9,3651.3,2.73873]
[1732941791005,1.6253,3651.5,3651.3,2.73873]
[1732941791205,0.65,3651.4,3650.9,2.739]
[1732941791514,0.65,3651.4,3651.1,2.73889]
[1732941792189,3.38868,3651.4,3650.8,2.73912]
[1732941792403,3.38868,3651.4,3650.8,3.460374]
[1732941793857,0.1,3650.8,3650.3,1.5796]
[1732941794007,0.1,3650.8,3650.5,2.73929]
[1732941794008,0.55,3650.7,3650.5,2.73929]
[1732941794649,0.55,3650.7,3650.0,1.5796]
[1732941794953,0.55,3650.7,3650.4,2.73938]
[1732941795154,0.55,3650.7,3650.4,3.287261]
[1732941795310,0.55,3650.7,3650.5,2.73934]
[1732941795512,0.55,3650.5,3650.3,2.73947]
[1732941796247,0.55,3650.5,3650.1,2.73963]
[1732941798354,0.55,3650.5,3650.2,2.73955]
[1732941799554,0.55,3650.3,3649.7,4.31953]
[1732941799775,0.55,3650.3,3650.0,2.73971]
[1732941799916,0.55,3650.5,3650.0,2.73971]
[1732941800124,0.55,3650.3,3650.0,2.73971]
[1732941801551,0.55,3650.3,3650.1,2.73964]
[1732941802668,0.1,3650.4,3650.1,2.73964]
[1732941802843,0.55,3650.3,3650.1,2.73964]
[1732941803467,0.55,3650.3,3650.0,2.73971]
[1732941804963,0.55,3650.3,3650.1,2.73962]
[1732941805651,0.1,3650.4,3650.1,2.73962]
[1732941805859,0.55,3650.3,3650.1,2.73962]
[1732941807176,0.55,3650.3,3649.9,2.73979]
[1732941807378,0.55,3650.3,3649.7,3.445896]
[1732941807541,0.55,3650.3,3650.0,2.73971]
[1732941807739,0.55,3650.3,3649.8,2.73982]
[1732941807946,0.55,3650.0,3649.8,2.73982]
[1732941808336,0.1,3649.9,3649.6,2.73997]
[1732941808528,0.55,3649.8,3649.6,2.73997]
[1732941808934,0.55,3649.8,3649.6,2.74001]
[1732941809134,0.65,3649.9,3649.6,2.74001]
[1732941809379,0.68424909,3649.9,3649.6,2.74001]
[1732941809533,0.65,3649.9,3649.6,2.74001]
[1732941809736,0.65,3649.9,3649.2,1.6389]
[1732941810066,0.65,3649.9,3649.8,2.73987]
[1732941811731,0.1,3650.7,3649.8,1.5128]
[1732941811962,0.1,3650.9,3650.8,2.73912]
[1732941812346,0.1,3650.9,3650.6,2.73927]
[1732941812567,1.6495,3651.1,3650.4,2.73941]
[1732941812568,0.1,3650.7,3650.4,2.73941]
[1732941812735,0.1,3650.7,3650.5,0.547896]
[1732941813072,12.49945073,3652.1,3650.5,0.547896]
[1732941813073,0.1,3651.7,3651.3,4.25149]
[1732941813486,0.1,3651.4,3651.3,2.73869]
[1732941814137,0.1,3651.4,3651.0,1.5128]
[1732941814331,0.55,3651.2,3650.5,1.5128]
[1732941814573,0.55,3651.3,3650.6,0.425216]
[1732941814731,0.55,3651.3,3650.7,2.7392]
[1732941814935,0.55,3651.3,3651.1,2.73883]
[1732941815181,0.55,3651.3,3650.9,2.73903]
[1732941815779,0.55,3651.3,3651.0,2.73895]
[1732941816452,0.55,3651.3,3651.2,2.73882]
[1732941817359,0.1,3651.8,3651.7,2.73845]
[1732941817675,0.1,3651.8,3651.5,2.73855]
[1732941818488,0.55,3651.7,3651.5,2.73855]
[1732941818855,0.65,3651.4,3651.3,2.73873]
[1732941819054,0.55,3651.3,3651.2,2.73882]
[1732941824564,0.65,3651.3,3651.2,2.73882]
[1732941826179,0.55,3651.2,3651.0,2.73897]
[1732941826366,0.55,3651.2,3651.1,2.7389]
[1732941826884,0.55,3651.2,3650.6,1.6279]
[1732941827099,0.55,3651.2,3650.9,2.73904]
[1732941828293,0.55,3651.2,3650.7,0.21730306]
[1732941828492,0.55,3651.2,3650.6,1.6279]
[1732941828807,0.55,3651.2,3650.9,2.73904]
[1732941830098,0.55,3651.2,3651.0,2.73895]
[1732941832108,0.55,3651.2,3651.1,2.7389]
[1732941833323,1.6495,3651.7,3651.3,2.73875]
[1732941833324,0.55,3651.4,3651.3,2.73875]
[1732941834322,0.1,3651.8,3651.7,2.73845]
[1732941834615,2.73772,3652.7,3652.3,2.738]
[1732941834616,0.1,3652.4,3652.3,2.738]
[1732941834780,0.95111733,3652.7,3652.4,2.73792]
[1732941835117,0.95111733,3652.7,3652.6,2.73777]
[1732941836912,0.1,3652.8,3652.6,2.73777]
[1732941837215,0.55,3652.7,3652.6,2.73777]
[1732941838136,0.55,3652.7,3652.4,2.73792]
[1732941838293,0.65,3652.5,3652.4,2.73792]
[1732941838703,0.55,3652.4,3652.2,2.73806]
[1732941839298,0.55,3652.4,3652.3,2.738]
[1732941840610,0.55,3652.6,3652.3,2.738]
[1732941840811,0.55,3652.6,3652.4,2.73785]
[1732941841239,0.65,3652.5,3652.4,2.73785]
[1732941842134,0.42312018,3654.5,3652.4,2.73785]
[1732941842135,0.1,3653.3,3653.0,2.73747]
[1732941842730,0.1,3653.3,3653.2,2.73732]
[1732941843338,0.1,3653.3,3652.9,2.73754]
[1732941843504,0.55,3653.2,3652.5,1.5901]
[1732941843696,0.55,3653.2,3653.0,5.47482]
[1732941843894,0.55,3653.2,3653.1,2.7374]
[1732941844531,0.1,3653.3,3653.2,2.73732]
[1732941845330,0.1,3653.3,3653.1,2.7374]
[1732941845529,0.1,3653.3,3652.7,2.7377]
[1732941845752,0.55,3653.2,3653.1,2.7374]